fUSD/lending_fUSD_20240223
["ID","MTS","AMOUNT","RATE_DAILY","PERIOD"]
[314926220,1708672245199,-262127.94904129,0.000298,2]
[314926221,1708672245210,-38586.97117666,0.000298,2]
[314926222,1708672245234,-380.77849303,0.000298,2]
[314926223,1708672245245,-3045.46140915,0.000298,2]
[314926224,1708672245256,-346.49127393,0.000298,2]
[314926225,1708672245268,-15175.81479591,0.000298,2]
[314926226,1708672245279,-501.94933511,0.000298,2]
[314926227,1708672245306,-366.076042,0.00029,7]
[314926228,1708672245315,-141.8116919,0.000298,2]
[314926229,1708672245326,-1121.01309545,0.000298,2]
[314926230,1708672245337,-1521.05200631,0.000298,2]
[314926231,1708672245762,-385.81,0.00027888,10]
[314926232,1708672245771,-177.44447484,0.0002793,2]
[314926233,1708672245780,-151.0,0.00029,7]
[314926234,1708672245790,-366.076042,0.000291,7]
[314926235,1708672245802,-151.0,0.000291,7]
[314926236,1708672245810,-366.076042,0.00029103,7]
[314926237,1708672245819,-151.0,0.00029103,7]
[314926238,1708672245828,-366.076042,0.000292,7]
[314926239,1708672245838,-151.0,0.000292,7]
[314926240,1708672245847,-366.076042,0.000292,7]
[314926241,1708672245855,-279.763944,0.000292,7]
[314926242,1708672245864,-366.076052,0.000292,7]
[314926243,1708672245874,-198190.23418495,0.000298,2]
[314926244,1708672245892,-815.53151063,0.000298,2]
[314926245,1708672245903,-1425.41048039,0.000298,2]
[314926246,1708672245926,-13053.90067478,0.000298,2]
[314926247,1708672245939,-2212.06851734,0.000298,2]
[314926248,1708672245950,-6119.44966833,0.000298,2]
[314926272,1708672246431,-1018.51355869,0.000298,2]
[314926274,1708672246443,-1548.15,0.000298,2]
[314926276,1708672246459,-11209.46871909,0.000298,2]
[314926279,1708672246470,-502.86900247,0.000298,2]
[314926281,1708672246481,-898.17017497,0.000298,2]
[314926283,1708672246492,-1519.45712106,0.000298,2]
[314926285,1708672246503,-271.83505795,0.000298,2]
[314926287,1708672246517,-392.29490377,0.000298,2]
[314926289,1708672246528,-2459.53667299,0.000298,2]
[314926291,1708672246539,-3924.91913975,0.000298,2]
[314926293,1708672246550,-278.02097649,0.000298,2]
[314926295,1708672246561,-495.13548268,0.000298,2]
[314926297,1708672246572,-500.0,0.000298,2]
[314926300,1708672246584,-381.87407514,0.000298,2]
[314926302,1708672246595,-35640.92932299,0.000298,2]
[314926304,1708672246606,-2228.22024225,0.000298,2]
[314926307,1708672246622,-54215.99631626,0.000298,2]
[314926309,1708672246632,-3186.63019659,0.000298,2]
[314926311,1708672246643,-1805.18182646,0.000298,2]
[314926313,1708672246655,-5684.8095764,0.000298,2]
[314926365,1708672247160,-202.4393114,0.00028799,2]
[314926367,1708672247170,-217.54425513,0.00029099,2]
[314926369,1708672247179,-4255.0049202,0.00029099,2]
[314926371,1708672247188,-107.23521983,0.000298,2]
[314926374,1708672247203,-3016.59626308,0.000298,2]
[314926386,1708672247310,-450.37698734,0.000298,2]
[314926389,1708672247321,-2517.88592748,0.000298,2]
[314926391,1708672247332,-627.102,0.000298,2]
[314926403,1708672247440,-281803.27735466,0.000298,2]
[314926405,1708672247452,-2546.24871056,0.000298,2]
[314926407,1708672247464,-459.5785968,0.000298,2]
[314926410,1708672247476,-644.28818466,0.000298,2]
[314926412,1708672247486,-334.58939694,0.000298,2]
[314926414,1708672247497,-1249.55954294,0.000298,2]
[314926429,1708672247632,-433.77264747,0.000298,2]
[314926432,1708672247644,-13293.01943978,0.000298,2]
[314926546,1708673084815,701.0,0.00025,10]
[314926548,1708673352167,-202.4393114,0.00024229,2]
[314926549,1708673352188,-212.0,0.0002423,2]
[314926555,1708673431900,-311.88,0.00025127,2]
[314926556,1708673431910,-202.4393114,0.00026985,2]
[314926557,1708673431919,-250.0,0.00026986,2]
[314926558,1708673431929,-158.61881126,0.00026996,2]
[314926559,1708673431939,-4567.38,0.00027064,2]
[314926560,1708673431949,-500.0,0.00027071,2]
[314926561,1708673431960,-166.4,0.00027076,2]
[314926562,1708673431969,-150.0,0.00027095,2]
[314926563,1708673431980,-2000.0,0.00027096,2]
[314926564,1708673431989,-870.21,0.00027096,2]
[314926565,1708673431999,-250.0,0.00027209,2]
[314926566,1708673432009,-159.37,0.00027304,2]
[314926567,1708673432021,-158.61881121,0.00027321,2]
[314926568,1708673432030,-759.04,0.00027367,2]
[314926569,1708673432042,-311.88,0.0002739,2]
[314926570,1708673432051,-35565.84,0.00027397,2]
[314926571,1708673432061,-283.19,0.00027397,2]
[314926572,1708673432070,-375.0,0.000274,2]
[314926573,1708673432082,-153.5,0.00027432,2]
[314926574,1708673432092,-159.37,0.00027482,2]
[314926575,1708673432102,-166.4,0.00027527,2]
[314926576,1708673432111,-283.19,0.00027556,2]
[314926577,1708673432120,-1000.0,0.00027599,2]
[314926578,1708673432129,-883.21,0.00027603,2]
[314926579,1708673432138,-158.61881121,0.00027647,2]
[314926580,1708673432147,-159.37,0.0002766,2]
[314926581,1708673432159,-283.19,0.00027714,2]
[314926582,1708673432169,-158.15,0.0002777,2]
[314926583,1708673432181,-499.99,0.00027804,2]
[314926584,1708673432190,-159.37,0.00027838,2]
[314926585,1708673432201,-283.19,0.00027872,2]
[314926586,1708673432210,-1000.0,0.000279,2]
[314926587,1708673432220,-158.15,0.00027969,2]
[314926588,1708673432229,-158.61881121,0.00027972,2]
[314926589,1708673432240,-166.4,0.00027979,2]
[314926590,1708673432249,-666.40608467,0.00027999,5]
[314926591,1708673432258,-1000.0,0.00028,2]
[314926592,1708673432269,-159.37,0.00028016,2]
[314926593,1708673432278,-283.19,0.0002803,2]
[314926594,1708673432288,-158.15,0.00028167,2]
[314926595,1708673432297,-283.19,0.00028189,2]
[314926596,1708673432306,-159.37,0.00028194,2]
[314926597,1708673432315,-158.61881121,0.00028298,2]
[314926598,1708673432325,-225.0,0.00028347,2]
[314926599,1708673432335,-283.19,0.00028347,2]
[314926600,1708673432345,-158.15,0.00028365,2]
[314926601,1708673432355,-159.37,0.00028371,2]
[314926602,1708673432365,-166.4,0.0002843,2]
[314926603,1708673432374,-2500.0,0.000285,2]
[314926604,1708673432384,-283.19,0.00028505,2]
[314926605,1708673432394,-159.37,0.00028549,2]
[314926606,1708673432403,-158.15,0.00028564,2]
[314926607,1708673432413,-166.12,0.00028589,2]
[314926608,1708673432423,-321.5,0.0002859,10]
[314926609,1708673432434,-12403.8474,0.000286,2]
[314926610,1708673432444,-772.98311286,0.000286,4]
[314926611,1708673432453,-38669.54695992,0.000286,2]
[314926612,1708673432463,-140704.50001949,0.000286,2]
[314926613,1708673432718,-1227.07804935,0.000286,2]
[314926615,1708673437871,-267.92,0.0002859,10]
[314926616,1708673437882,-529.12011047,0.000286,2]
[314926617,1708673437894,-1840.01178555,0.000286,2]
[314926618,1708673437906,-894.31731087,0.000286,2]
[314926621,1708673437916,-158.61881121,0.00028623,2]
[314926623,1708673437926,-283.19,0.00028664,2]
[314926625,1708673437936,-369.60047278,0.00028699,15]
[314926626,1708673437945,-63.73837568,0.000287,2]
[314926627,1708673437957,-2392.36310128,0.000287,2]
[314926628,1708673437969,-1028.44487161,0.000287,2]
[314926629,1708673438002,-433.14562754,0.000287,2]
[314926630,1708673438077,-382.6047169,0.000287,2]
[314926631,1708673438089,-1465.62805132,0.000287,2]
[314926632,1708673438101,-1032.89290845,0.000287,2]
[314926633,1708673438113,-3365.46718033,0.000287,2]
[314926634,1708673438179,-14511.13962157,0.000287,2]
[314926635,1708673438214,-1089.51775594,0.000287,2]
[314926636,1708673438225,-1743.55775318,0.000287,2]
[314926637,1708673438236,-1403.88429592,0.000287,2]
[314926638,1708673438249,-9805.49916001,0.000287,2]
[314926639,1708673438261,-45064.25568027,0.000287,2]
[314926640,1708673438272,-155.0,0.000287,2]
[314926641,1708673438281,-177.74,0.000287,2]
[314926643,1708673438291,-150.66413202,0.000287,2]
[314926645,1708673438300,-3000.0,0.000287,2]
[314926647,1708673438310,-3000.0,0.000287,2]
[314926649,1708673438319,-3000.0,0.000287,2]
[314926651,1708673438328,-3000.0,0.000287,2]
[314926653,1708673438337,-3000.0,0.000287,2]
[314926655,1708673438347,-3000.0,0.000287,2]
[314926657,1708673438356,-3000.0,0.000287,2]
[314926659,1708673438366,-3000.0,0.000287,2]
[314926661,1708673438375,-3000.0,0.000287,2]
[314926663,1708673438384,-3000.0,0.000287,2]
[314926665,1708673438394,-3000.0,0.000287,2]
[314926667,1708673438404,-3000.0,0.000287,2]
[314926670,1708673438413,-3000.0,0.000287,2]
[314926672,1708673438423,-3000.0,0.000287,2]
[314926674,1708673438432,-3000.0,0.000287,2]
[314926676,1708673438441,-3000.0,0.000287,2]
[314926677,1708673438451,-3000.0,0.000287,2]
[314926680,1708673438460,-3000.0,0.000287,2]
[314926682,1708673438470,-4704.1380203,0.000287,2]
[314926683,1708673438479,-159.37,0.00028727,2]
[314926685,1708673438488,-870.21,0.0002874,2]
[314926687,1708673438498,-158.15,0.00028762,2]
[314926689,1708673438507,-187.09157748,0.00028764,7]
[314926691,1708673438519,-1000.0,0.00028764,7]
[314926693,1708673438529,-1000.0,0.00028764,7]
[314926696,1708673438538,-1955.50436582,0.00028764,7]
[314926698,1708673438547,-1000.0,0.00028764,7]
[314926700,1708673438557,-1000.0,0.00028764,7]
[314926702,1708673438566,-1000.0,0.00028764,7]
[314926704,1708673438575,-221.30304992,0.00028798,2]
[314926706,1708673438584,-500.41404344,0.00028798,2]
[314926741,1708673438917,-1120.99860134,0.00028799,2]
[314926743,1708673438927,-17957.16437889,0.00028799,2]
[314926745,1708673438936,-12834.3287,0.000288,2]
[314926747,1708673438945,-100000.0,0.000288,2]
[314926749,1708673438954,-150.0,0.000288,2]
[314926751,1708673438965,-283.19,0.00028822,2]
[314926753,1708673438974,-166.4,0.00028881,2]
[314926755,1708673438983,-694.3077609,0.000289,2]
[314926757,1708673438992,-158.61881121,0.00028948,2]
[314926759,1708673439002,-158.15,0.0002896,2]
[314926761,1708673439011,-155.0,0.00028973,2]
[314926763,1708673439022,-13862.2217,0.00029,2]
[314926765,1708673439032,-2000.0,0.00029,2]
[314926767,1708673439041,-9750.00007312,0.00029,2]
[314926769,1708673439050,-458.0,0.00029021,2]
[314926771,1708673439059,-216.0,0.00029021,2]
[314926773,1708673439069,-500.0,0.00029039,2]
[314926775,1708673439078,-500.0,0.00029039,2]
[314926777,1708673439088,-500.0,0.00029039,2]
[314926779,1708673439097,-244.76374515,0.00029039,2]
[314926781,1708673439108,-500.0,0.00029039,2]
[314926783,1708673439118,-500.0,0.00029039,2]
[314926785,1708673439127,-509.21445293,0.00029039,2]
[314926787,1708673439136,-419.47430734,0.00029098,2]
[314926789,1708673439146,-253.29401006,0.00029098,2]
[314926791,1708673439156,-2970.0,0.000291,2]
[314926793,1708673439168,-20385.0,0.000291,2]
[314926795,1708673439178,-158.15,0.00029159,2]
[314926797,1708673439189,-5543.703577,0.000292,2]
[314926799,1708673439198,-38669.54695983,0.00029216,2]
[314926801,1708673439209,-4502.16421944,0.00029231,2]
[314926803,1708673439218,-772.98311283,0.00029231,4]
[314926805,1708673439227,-4502.16421944,0.00029239,2]
[314926807,1708673439237,-8682.74528019,0.00029244,2]
[314926809,1708673439246,-145195.02727573,0.00029247,2]
[314926811,1708673439255,-177.74,0.00029248,2]
[314926813,1708673439265,-4502.16421944,0.00029253,2]
[314926816,1708673439277,-729.67366453,0.00029264,2]
[314926818,1708673439286,-22636.48623639,0.0002927,2]
[314926820,1708673439296,-158.61881121,0.00029274,2]
[314926822,1708673439305,-1000.0,0.00029299,2]
[314926824,1708673439314,-8682.74528019,0.00029299,2]
[314926826,1708673439323,-41673.86898619,0.00029315,2]
[314926827,1708673439332,-41673.86898619,0.00029322,2]
[314926828,1708673439341,-480.49315586,0.00029324,2]
[314926829,1708673439351,-498.28919872,0.00029331,2]
[314926830,1708673439360,-166.4,0.00029332,2]
[314926831,1708673439369,-480.49315586,0.00029338,2]
[314926832,1708673439379,-729.67366453,0.0002934,2]
[314926833,1708673439388,-150.0,0.00029348,2]
[314926834,1708673439398,-369.60047278,0.0002935,15]
[314926835,1708673439408,-756.69861521,0.00029357,2]
[314926836,1708673439418,-158.15,0.00029357,2]
[314926837,1708673439427,-756.69861521,0.00029366,2]
[314926838,1708673439437,-498.28919872,0.00029371,2]
[314926839,1708673439446,-4502.16421944,0.00029373,2]
[314926840,1708673439456,-150.0,0.00029378,2]
[314926841,1708673439465,-155.83929921,0.00029391,3]
[314926842,1708673439475,-22636.48623639,0.00029399,2]
[314926843,1708673439484,-1372.6430457,0.00029413,2]
[314926844,1708673439494,-1736.549056,0.00029484,2]
[314926845,1708673439503,-185.33307434,0.00029488,2]
[314926846,1708673439513,-281.44555626,0.00029491,2]
[314926847,1708673439524,-1736.549056,0.00029492,2]
[314926848,1708673439534,-291.8694658,0.00029492,2]
[314926849,1708673439543,-1736.549056,0.00029493,2]
[314926850,1708673439552,-185.33307434,0.00029497,2]
[314926851,1708673439563,-192.1972623,0.00029499,2]
[314926852,1708673439573,-1315.6412712,0.000295,2]
[314926853,1708673439583,-545.84,0.000295,2]
[314926854,1708673439594,-8731.21611969,0.000295,2]
[314926855,1708673439605,-16074.20660889,0.00029505,2]
[314926856,1708673439616,-8731.21611969,0.00029506,2]
[314926857,1708673439626,-291.8694658,0.00029508,2]
[314926858,1708673439636,-3859.25716084,0.0002951,2]
[314926859,1708673439646,-8731.21611969,0.00029514,2]
[314926860,1708673439656,-26346.0,0.00029521,5]
[314926861,1708673439665,-16074.20660889,0.00029522,2]
[314926862,1708673439675,-291.8694658,0.00029525,2]
[314926863,1708673439685,-1736.549056,0.00029527,2]
[314926864,1708673439695,-150.0,0.00029528,2]
[314926865,1708673439704,-192.1972623,0.00029533,2]
[314926866,1708673439714,-192.1972623,0.00029535,2]
[314926867,1708673439723,-150.0,0.00029536,2]
[314926868,1708673439733,-500.0,0.00029537,2]
[314926869,1708673439743,-281.44555626,0.0002954,2]
[314926870,1708673439752,-1736.549056,0.0002954,2]
[314926871,1708673439762,-150.0,0.00029542,2]
[314926872,1708673439775,-185.33307434,0.00029544,2]
[314926873,1708673439784,-3349.05889372,0.00029544,2]
[314926874,1708673439794,-16074.20660889,0.00029546,2]
[314926875,1708673439803,-192.1972623,0.00029547,2]
[314926876,1708673439812,-3349.05889372,0.00029549,2]
[314926877,1708673439822,-1736.549056,0.00029551,2]
[314926878,1708673439831,-150.0,0.00029552,2]
[314926879,1708673439840,-16074.20660889,0.00029553,2]
[314926880,1708673439849,-1736.549056,0.00029554,2]
[314926881,1708673439859,-158.15,0.00029556,2]
[314926882,1708673439868,-192.1972623,0.00029556,2]
[314926883,1708673439878,-3349.05889372,0.00029558,2]
[314926884,1708673439887,-200.0,0.00029562,2]
[314926885,1708673439897,-800.0,0.00029562,2]
[314926886,1708673439906,-185.33307434,0.00029564,2]
[314926887,1708673439917,-8731.21611969,0.00029564,2]
[314926888,1708673439927,-185.33307434,0.00029566,2]
[314926889,1708673439937,-1736.549056,0.00029569,2]
[314926890,1708673439947,-281.44555626,0.00029572,2]
[314926891,1708673439957,-16074.20660889,0.00029573,2]
[314926892,1708673439968,-8731.21611969,0.00029573,2]
[314926893,1708673439978,-281.44555626,0.00029573,2]
[314926894,1708673439988,-281.44555626,0.00029574,2]
[314926895,1708673439998,-153.81336378,0.00029577,2]
[314926896,1708673440007,-1736.549056,0.0002958,2]
[314926897,1708673440020,-302.4026063,0.00029581,2]
[314926898,1708673440031,-831.31,0.00029589,2]
[314926899,1708673440040,-439.57,0.00029589,2]
[314926900,1708673440050,-153.47,0.00029589,2]
[314926901,1708673440060,-440.21,0.00029589,2]
[314926902,1708673440069,-300.0,0.00029589,2]
[314926903,1708673440079,-150.62,0.00029589,2]
[314926904,1708673440089,-359.94,0.00029589,2]
[314926905,1708673440098,-1736.549056,0.00029592,2]
[314926906,1708673440108,-291.8694658,0.00029597,2]
[314926907,1708673440117,-291.8694658,0.00029598,2]
[314926908,1708673440127,-3349.05889372,0.00029599,2]
[314926909,1708673440136,-5000.0,0.00029599,2]
[314926910,1708673440146,-300.0,0.00029599,2]
[314926911,1708673440156,-300.0,0.00029599,2]
[314926912,1708673440167,-303.05778823,0.00029599,2]
[314926913,1708673440176,-200.86222414,0.00029599,2]
[314926914,1708673440185,-158.61881121,0.00029599,2]
[314926915,1708673440195,-903.57311344,0.00029599,2]
[314926916,1708673440205,-3349.05889372,0.00029599,2]
[314926917,1708673440214,-2325.30792973,0.000296,2]
[314926918,1708673440223,-2885.15350216,0.000296,2]
[314926919,1708673440233,-150.0,0.00029606,2]
[314926920,1708673440243,-303.65890311,0.00029623,2]
[314926921,1708673440253,-150.0,0.00029625,2]
[314926922,1708673440262,-150.0,0.00029628,2]
[314926923,1708673440275,-150.0,0.00029633,2]
[314926924,1708673440284,-190.89,0.00029633,2]
[314926925,1708673440294,-150.0,0.00029635,2]
[314926926,1708673440303,-300.0,0.00029642,2]
[314926927,1708673440314,-311.88,0.00029654,2]
[314926928,1708673440323,-150.0,0.00029659,2]
[314926929,1708673440333,-208.1605,0.0002966,2]
[314926930,1708673440342,-158.29807734,0.00029688,2]
[314926931,1708673440352,-4342.50541348,0.00029698,2]
[314926932,1708673440362,-369.60047279,0.00029698,15]
[314926933,1708673440371,-107726.89269631,0.00029698,2]
[314926934,1708673440382,-289.0,0.00029698,5]
[314926935,1708673440391,-778701.69034274,0.00029699,4]
[314926936,1708673440402,-150000.0,0.00029699,2]
[314926938,1708673440411,-150000.0,0.00029699,2]
[314926939,1708673440422,-150000.0,0.00029699,2]
[314926940,1708673440432,-150000.0,0.00029699,2]
[314926941,1708673440441,-251.01445351,0.00029699,15]
[314926942,1708673440451,-488.18649206,0.00029699,15]
[314926943,1708673440460,-151.0,0.00029699,7]
[314926944,1708673440471,-153.857137,0.00029699,7]
[314926945,1708673440481,-151.0,0.00029699,7]
[314926946,1708673440490,-151.0,0.00029699,7]
[314926947,1708673440500,-151.0,0.00029699,7]
[314926948,1708673440509,-151.0,0.00029699,2]
[314926949,1708673440522,-151.0,0.00029699,7]
[314926950,1708673440531,-151.0,0.00029699,2]
[314926951,1708673440541,-151.0,0.00029699,7]
[314926952,1708673440550,-151.0,0.00029699,7]
[314926953,1708673440559,-151.0,0.00029699,7]
[314926954,1708673440569,-636.796986,0.00029699,7]
[314926955,1708673440579,-636.796986,0.00029699,7]
[314926956,1708673440589,-151.0,0.00029699,7]
[314926957,1708673440598,-151.0,0.00029699,7]
[314926958,1708673440607,-151.0,0.00029699,7]
[314926959,1708673440617,-151.0,0.00029699,7]
[314926960,1708673440626,-151.0,0.00029699,7]
[314926961,1708673440636,-151.0,0.00029699,7]
[314926962,1708673440646,-151.0,0.00029699,7]
[314926963,1708673440655,-151.0,0.00029699,7]
[314926964,1708673440665,-151.0,0.00029699,7]
[314926965,1708673440674,-151.0,0.00029699,7]
[314926966,1708673440683,-151.0,0.00029699,7]
[314926967,1708673440693,-151.0,0.00029699,7]
[314926968,1708673440702,-151.0,0.00029699,7]
[314926969,1708673440711,-151.0,0.00029699,7]
[314926970,1708673440721,-157.653216,0.00029699,7]
[314926971,1708673440730,-151.0,0.00029699,7]
[314926972,1708673440740,-151.0,0.00029699,7]
[314926973,1708673440749,-153.422171,0.00029699,7]
[314926974,1708673440758,-151.0,0.00029699,7]
[314926975,1708673440768,-151.0,0.00029699,7]
[314926976,1708673440778,-151.0,0.00029699,7]
[314926977,1708673440787,-160.0,0.00029699,7]
[314926978,1708673440796,-160.0,0.00029699,7]
[314926979,1708673440805,-151.499031,0.00029699,7]
[314926980,1708673440815,-3701.27285981,0.000297,2]
[314926981,1708673440824,-191642.60371692,0.000297,2]
[314926982,1708673441271,-53357.39628308,0.000297,2]
[314926983,1708673441280,-1244.727612,0.000297,2]
[314926984,1708673441290,-168.3332626,0.000297,2]
[314926985,1708673441299,-189.628111,0.000297,7]
[314926986,1708673441308,-189.628111,0.000297,7]
[314926987,1708673441318,-151.0,0.000297,7]
[314926988,1708673441327,-151.402169,0.000297,7]
[314926989,1708673441336,-636.796986,0.000297,7]
[314926990,1708673441346,-636.796986,0.000297,7]
[314926991,1708673441355,-190.441522,0.000297,7]
[314926992,1708673441364,-151.0,0.000297,7]
[314926993,1708673441374,-151.0,0.000297,7]
[314926994,1708673441384,-151.0,0.000297,7]
[314926995,1708673441393,-151.0,0.000297,7]
[314926996,1708673441403,-151.0,0.000297,7]
[314926997,1708673441412,-151.0,0.000297,7]
[314926998,1708673441422,-151.0,0.000297,7]
[314926999,1708673441431,-151.0,0.000297,7]
[314927000,1708673441441,-151.0,0.000297,7]
[314927001,1708673441450,-151.0,0.000297,7]
[314927002,1708673441459,-151.0,0.000297,7]
[314927003,1708673441469,-153.156651,0.000297,7]
[314927004,1708673441478,-227.867719,0.000297,7]
[314927005,1708673441488,-151.0,0.000297,7]
[314927006,1708673441497,-151.0,0.000297,7]
[314927007,1708673441507,-151.0,0.000297,7]
[314927008,1708673441516,-160.0,0.000297,7]
[314927009,1708673441527,-160.0,0.000297,7]
[314927010,1708673441537,-151.0,0.000297,7]
[314927011,1708673441546,-181.739278,0.000297,7]
[314927013,1708673441556,-151.0,0.000297,7]
[314927014,1708673441565,-151.0,0.000297,7]
[314927015,1708673441575,-151.0,0.000297,7]
[314927016,1708673441584,-151.0,0.000297,7]
[314927017,1708673441593,-151.0,0.000297,7]
[314927018,1708673441603,-152.365701,0.000297,3]
[314927019,1708673441612,-256.253229,0.000297,7]
[314927020,1708673441621,-151.0,0.000297,7]
[314927021,1708673441631,-256.253229,0.000297,7]
[314927022,1708673441640,-150.0,0.0002971,2]
[314927023,1708673441649,-300.0,0.00029714,2]
[314927024,1708673441658,-266.95508844,0.00029716,2]
[314927025,1708673441667,-225.0,0.00029717,2]
[314927026,1708673441677,-150.0,0.00029749,2]
[314927027,1708673441686,-158.15,0.00029754,2]
[314927028,1708673441694,-150.0,0.00029756,2]
[314927029,1708673441704,-151.0,0.00029756,7]
[314927030,1708673441713,-151.0,0.00029756,7]
[314927031,1708673441722,-151.0,0.00029756,2]
[314927032,1708673441733,-151.0,0.00029756,2]
[314927033,1708673441742,-153.821496,0.00029756,7]
[314927034,1708673441751,-151.0,0.00029756,7]
[314927035,1708673441761,-151.0,0.0002976,7]
[314927036,1708673441771,-151.0,0.0002976,7]
[314927037,1708673441779,-248.404949,0.0002976,7]
[314927038,1708673441789,-158.331203,0.0002976,7]
[314927039,1708673441799,-151.0,0.0002976,7]
[314927040,1708673441808,-204.395707,0.0002976,7]
[314927041,1708673441817,-151.0,0.0002976,7]
[314927042,1708673441826,-224.826635,0.0002976,7]
[314927043,1708673441835,-151.0,0.0002976,7]
[314927044,1708673441844,-150.0,0.0002977,2]
[314927045,1708673441853,-150.0,0.00029774,2]
[314927046,1708673441862,-5123.36454713,0.0002978,2]
[314927047,1708673441871,-166.4,0.00029784,2]
[314927048,1708673441881,-150.0,0.00029784,2]
[314927049,1708673441890,-150.0,0.00029785,2]
[314927050,1708673441899,-150.0,0.00029788,2]
[314927051,1708673441908,-158.29807734,0.0002979,2]
[314927052,1708673441916,-177.74,0.00029796,2]
[314927053,1708673441926,-71482.08695119,0.00029797,2]
[314927054,1708673441935,-299.70416481,0.00029798,2]
[314927055,1708673441944,-24770.68,0.00029799,5]
[314927056,1708673441954,-872.49031612,0.00029799,2]
[314927057,1708673441963,-500.0,0.00029799,2]
[314927058,1708673441973,-500.0,0.00029799,2]
[314927059,1708673441982,-468.67279025,0.00029799,2]
[314927060,1708673441991,-150.38595079,0.00029799,2]
[314927061,1708673442000,-439.20733533,0.00029799,2]
[314927062,1708673442010,-319.71648578,0.00029799,2]
[314927063,1708673442021,-470.16409527,0.00029799,2]
[314927064,1708673442030,-492.26000962,0.00029799,2]
[314927065,1708673442040,-440.07941601,0.00029799,2]
[314927066,1708673442050,-150.01,0.00029799,2]
[314927067,1708673442059,-4497.67602856,0.00029799,2]
[314927068,1708673442068,-247.018052,0.00029799,7]
[314927069,1708673442077,-166.616949,0.00029799,7]
[314927070,1708673442086,-182.488863,0.00029799,7]
[314927071,1708673442096,-250.0,0.000298,2]
[314927072,1708673442106,-500.0,0.000298,2]
[314927073,1708673442115,-500.0,0.000298,2]
[314927074,1708673442124,-500.0,0.000298,2]
[314927075,1708673442133,-500.0,0.000298,2]
[314927076,1708673442142,-500.0,0.000298,2]
[314927077,1708673442152,-500.0,0.000298,2]
[314927078,1708673442161,-500.0,0.000298,2]
[314927079,1708673442174,-500.0,0.000298,2]
[314927080,1708673442184,-500.0,0.000298,2]
[314927081,1708673442193,-500.0,0.000298,2]
[314927082,1708673442203,-500.0,0.000298,2]
[314927083,1708673442212,-500.0,0.000298,2]
[314927084,1708673442222,-500.0,0.000298,2]
[314927085,1708673442232,-500.0,0.000298,2]
[314927086,1708673442241,-500.0,0.000298,2]
[314927087,1708673442251,-500.0,0.000298,2]
[314927088,1708673442260,-500.0,0.000298,2]
[314927089,1708673442271,-500.0,0.000298,2]
[314927090,1708673442281,-500.0,0.000298,2]
[314927091,1708673442290,-500.0,0.000298,2]
[314927092,1708673442299,-500.0,0.000298,2]
[314927093,1708673442308,-13134.86,0.000298,5]
[314927094,1708673442318,-176978.61772111,0.000298,2]
[314927095,1708673442327,-504124.92197967,0.000298,2]
[314927096,1708673442342,-201426.2138076,0.000298,2]
[314927097,1708673442351,-271.0,0.000298,2]
[314927098,1708673442360,-200.0,0.000298,2]
[314927099,1708673442370,-60230.73523369,0.000298,3]
[314927100,1708673442386,-12458.39438194,0.000298,3]
[314927103,1708673443040,-499.99,0.00028764,2]
[314927104,1708673443049,-628.939781,0.000298,3]
[314927105,1708673443060,-294550.00000175,0.000298,3]